[Event "11th LCC FIDE Open 2019"]
[Site "London"]
[Date "2019.12.01"]
[Round "4.25"]
[White "Balaji, Aaravamudhan"]
[Black "Cumming, Rhys"]
[Result "1-0"]
[ECO "E60"]
[WhiteElo "2080"]
[BlackElo "2284"]
[Annotator "ChessBase"]
[PlyCount "73"]
[EventDate "2019.11.29"]
[EventType "swiss"]
[EventCountry "ENG"]
[SourceTitle "playchess.com"]
[Source "ChessBase"]
[SourceQuality "1"]
[TimeControl "40/5400+30:1800+30"]

1. d4 {[%emt 0:00:00]} Nf6 {[%emt 0:00:00]} 2. c4 {[%emt 0:00:00]} g6 {[%emt 0:00:00]} 3. f3 {[%emt 0:00:10]} Nc6 {[%emt 0:08:29]} 4. d5 {[%emt 0:01:08]} Ne5 {[%emt 0:00:09]} 5. e4 {[%emt 0:00:17]} d6 {[%emt 0:00:09]} 6. Nc3 {[%emt 0:03:05]} Bg7 {[%emt 0:01:16]} 7. Be3 {[%emt 0:00:23]} c6 {[%emt 0:16:21]} 8. Qd2 {[%emt 0:02:12]} b5 {[%emt 0:11:14]} 9. cxb5 {[%emt 0:12:23]} cxd5 {[%emt 0:02:31]} 10. exd5 {[%emt 0:02:35]} O-O {[%emt 0:09:15]} 11. Rc1 {[%emt 0:14:26]} Bb7 {[%emt 0:05:54]} 12. Nh3 {[%emt 0:02:15]} Rc8 {[%emt 0:09:06]} 13. Rd1 {[%emt 0:09:03]} e6 {[%emt 0:09:52]} 14. dxe6 {[%emt 0:21:21]} Bxf3 {[%emt 0:00:02]} 15. exf7+ {[%emt 0:01:28]} Rxf7 {[%emt 0:00:58]} 16. Ng5 {[%emt 0:00:30]} Nfg4 {[%emt 0:02:39]} 17. Nxf7 {[%emt 0:10:45]} Qh4+ {[%emt 0:00:46]} 18. g3 {[%emt 0:02:19]} Qe7 {[%emt 0:01:09]} 19. Nxe5 {[%emt 0:04:08]} Qxe5 {[%emt 0:03:10]} 20. Be2 {[%emt 0:02:55]} Bxh1 {[%emt 0:09:05]} 21. Bxg4 {[%emt 0:00:20]} Rf8 {[%emt 0:04:52]} 22. Ke2 {[%emt 0:01:48]} Bg2 {[%emt 0:01:15]} 23. Rg1 {[%emt 0:02:54]} Bb7 {[%emt 0:01:00]} 24. Kd1 {[%emt 0:00:38]} d5 {[%emt 0:00:42]} 25. Bf4 {[%emt 0:00:55]} Qe7 {[%emt 0:00:02]} 26. Re1 {[%emt 0:00:36]} Qc5 {[%emt 0:00:44]} 27. Qe3 {[%emt 0:03:51]} d4 {[%emt 0:01:04]} 28. Qe7 {[%emt 0:00:35]} Qxe7 {[%emt 0:01:02]} 29. Rxe7 {[%emt 0:00:02]} dxc3 {[%emt 0:00:05]} 30. Rxb7 {[%emt 0:00:15]} cxb2 {[%emt 0:00:28]} 31. Kc2 {[%emt 0:00:05]} Kh8 {[%emt 0:01:00]} 32. Rb8 {[%emt 0:00:28]} Rxb8 {[%emt 0:00:39]} 33. Bxb8 {[%emt 0:00:02]} Bd4 {[%emt 0:00:07]} 34. a4 {[%emt 0:00:21]} Kg7 {[%emt 0:00:09]} 35. a5 {[%emt 0:00:34]} Kf6 {[%emt 0:00:02]} 36. Bxa7 {[%emt 0:00:57]} Bxa7 {[%emt 0:00:01]} 37. b6 {[%emt 0:00:06]} 1-0

[Event "11th LCC FIDE Open 2019"]
[Site "London"]
[Date "2019.12.01"]
[Round "4.26"]
[White "Czerw, Dawid"]
[Black "Deaconu, Mihai-Ionut"]
[Result "1-0"]
[ECO "E97"]
[WhiteElo "2255"]
[BlackElo "1957"]
[Annotator "ChessBase"]
[PlyCount "67"]
[EventDate "2019.11.29"]
[EventType "swiss"]
[EventCountry "ENG"]
[SourceTitle "playchess.com"]
[Source "ChessBase"]
[SourceQuality "1"]
[TimeControl "40/5400+30:1800+30"]

1. d4 {[%emt 0:00:00]} Nf6 {[%emt 0:01:57]} 2. c4 {[%emt 0:00:00]} g6 {[%emt 0:00:09]} 3. Nc3 {[%emt 0:00:00]} Bg7 {[%emt 0:00:04]} 4. e4 {[%emt 0:00:00]} d6 {[%emt 0:00:04]} 5. Nf3 {[%emt 0:00:00]} O-O {[%emt 0:00:07]} 6. Be2 {[%emt 0:00:00]} e5 {[%emt 0:00:07]} 7. O-O {[%emt 0:00:00]} Nc6 {[%emt 0:00:04]} 8. d5 {[%emt 0:00:01]} Ne7 {[%emt 0:00:07]} 9. b4 {[%emt 0:00:03]} Nh5 {[%emt 0:00:30]} 10. c5 {[%emt 0:01:33]} Nf4 {[%emt 0:00:07]} 11. Bxf4 {[%emt 0:00:18]} exf4 {[%emt 0:00:06]} 12. Rc1 {[%emt 0:00:04]} h6 {[%emt 0:00:37]} 13. h3 {[%emt 0:07:20]} g5 {[%emt 0:01:40]} 14. Nd4 {[%emt 0:03:17]} Kh8 {[%emt 0:11:06]} 15. Re1 {[%emt 0:06:38]} c6 {[%emt 0:19:06]} 16. Nf3 {[%emt 0:21:49]} dxc5 {[%emt 0:12:42]} 17. d6 {[%emt 0:03:58]} cxb4 {[%emt 0:00:05]} 18. dxe7 {[%emt 0:00:41]} Qxe7 {[%emt 0:00:07]} 19. Na4 {[%emt 0:03:49]} Rd8 {[%emt 0:09:39]} 20. Qc2 {[%emt 0:01:59]} b5 {[%emt 0:05:15]} 21. Nb2 {[%emt 0:09:46]} Bc3 {[%emt 0:01:07]} 22. Red1 {[%emt 0:01:46]} Re8 {[%emt 0:06:08]} 23. Rd3 {[%emt 0:06:50]} Qxe4 {[%emt 0:04:46]} 24. Rxc3 {[%emt 0:00:42]} bxc3 {[%emt 0:00:11]} 25. Qxc3+ {[%emt 0:00:05]} Kg8 {[%emt 0:00:04]} 26. Bxb5 {[%emt 0:07:23]} Bb7 {[%emt 0:06:26]} 27. Bd3 {[%emt 0:01:26]} Qe6 {[%emt 0:06:46]} 28. Bc4 {[%emt 0:01:03]} Qf5 {[%emt 0:01:29]} 29. Nd3 {[%emt 0:00:59]} c5 {[%emt 0:02:30]} 30. Nde5 {[%emt 0:02:39]} Re7 {[%emt 0:09:49]} 31. Nxf7 {[%emt 0:06:20]} Rxf7 {[%emt 0:00:14]} 32. Ne5 {[%emt 0:00:06]} Qe4 {[%emt 0:02:14]} 33. f3 {[%emt 0:02:05]} Qh7 {[%emt 0:00:06]} 34. Nxf7 {[%emt 0:01:42]} 1-0

[Event "11th LCC FIDE Open 2019"]
[Site "London"]
[Date "2019.12.01"]
[Round "4.29"]
[White "Bradbury, Neil H"]
[Black "Orgler, Philipp"]
[Result "1-0"]
[ECO "D34"]
[WhiteElo "2326"]
[BlackElo "2047"]
[Annotator "ChessBase"]
[PlyCount "59"]
[EventDate "2019.11.29"]
[EventType "swiss"]
[EventCountry "ENG"]
[SourceTitle "playchess.com"]
[Source "ChessBase"]
[SourceQuality "1"]
[TimeControl "40/5400+30:1800+30"]

1. d4 {[%emt 0:00:00]} d5 {[%emt 0:00:00]} 2. c4 {[%emt 0:00:00]} e6 {[%emt 0:00:04]} 3. Nc3 {[%emt 0:00:00]} c5 {[%emt 0:00:06]} 4. cxd5 {[%emt 0:00:53]} exd5 {[%emt 0:00:07]} 5. Nf3 {[%emt 0:00:12]} Nc6 {[%emt 0:00:05]} 6. g3 {[%emt 0:00:25]} Nf6 {[%emt 0:00:10]} 7. Bg2 {[%emt 0:00:06]} Be7 {[%emt 0:00:09]} 8. O-O {[%emt 0:00:13]} O-O {[%emt 0:00:04]} 9. dxc5 {[%emt 0:00:54]} Bxc5 {[%emt 0:00:15]} 10. Bg5 {[%emt 0:01:51]} d4 {[%emt 0:00:16]} 11. Bxf6 {[%emt 0:08:32]} Qxf6 {[%emt 0:00:10]} 12. Nd5 {[%emt 0:00:07]} Qd8 {[%emt 0:00:16]} 13. Nd2 {[%emt 0:00:10]} Re8 {[%emt 0:00:33]} 14. Rc1 {[%emt 0:20:13]} Bb6 {[%emt 0:00:44]} 15. Nb3 {[%emt 0:06:35]} Bg4 {[%emt 0:03:49]} 16. Re1 {[%emt 0:02:41]} Ba5 {[%emt 0:02:38]} 17. Nxa5 {[%emt 0:03:50]} Qxa5 {[%emt 0:00:09]} 18. a3 {[%emt 0:14:32]} Rad8 {[%emt 0:04:58]} 19. Nf4 {[%emt 0:00:06]} Ne5 {[%emt 0:29:23]} 20. Be4 {[%emt 0:07:24]} Ng6 {[%emt 0:06:35]} 21. Bxg6 {[%emt 0:08:02]} hxg6 {[%emt 0:00:15]} 22. Nd3 {[%emt 0:00:16]} Qh5 {[%emt 0:08:05]} 23. Qd2 {[%emt 0:02:48]} b6 {[%emt 0:02:35]} 24. Nf4 {[%emt 0:07:11]} Qh6 {[%emt 0:01:50]} 25. Rc7 {[%emt 0:03:13]} g5 {[%emt 0:01:44]} 26. Nd3 {[%emt 0:00:27]} Re6 {[%emt 0:09:10]} 27. f3 {[%emt 0:05:12]} Bf5 {[%emt 0:00:36]} 28. Nf2 {[%emt 0:00:13]} Qh5 {[%emt 0:14:19]} 29. g4 {[%emt 0:02:08]} Qh4 {[%emt 0:00:07]} 30. gxf5 {[%emt 0:00:29]} 1-0

[Event "11th LCC FIDE Open 2019"]
[Site "London"]
[Date "2019.12.01"]
[Round "4.30"]
[White "Paterek, Michal"]
[Black "Vaddadi, Seshagiri"]
[Result "1-0"]
[ECO "D35"]
[WhiteElo "2317"]
[BlackElo "2042"]
[Annotator "ChessBase"]
[PlyCount "57"]
[EventDate "2019.11.29"]
[EventType "swiss"]
[EventCountry "ENG"]
[SourceTitle "playchess.com"]
[Source "ChessBase"]
[SourceQuality "1"]
[TimeControl "40/5400+30:1800+30"]

1. d4 {[%emt 0:00:00]} d5 {[%emt 0:09:47]} 2. c4 {[%emt 0:00:00]} e6 {[%emt 0:00:13]} 3. Nc3 {[%emt 0:00:00]} Nf6 {[%emt 0:00:15]} 4. cxd5 {[%emt 0:00:16]} exd5 {[%emt 0:00:11]} 5. Bg5 {[%emt 0:00:21]} Be7 {[%emt 0:00:45]} 6. e3 {[%emt 0:00:20]} h6 {[%emt 0:05:15]} 7. Bh4 {[%emt 0:01:27]} O-O {[%emt 0:00:51]} 8. Bd3 {[%emt 0:00:28]} Nbd7 {[%emt 0:04:25]} 9. Nge2 {[%emt 0:04:46]} c6 {[%emt 0:03:32]} 10. f3 {[%emt 0:02:24]} c5 {[%emt 0:04:35]} 11. O-O {[%emt 0:03:28]} Re8 {[%emt 0:01:43]} 12. Rc1 {[%emt 0:04:20]} b6 {[%emt 0:09:47]} 13. Bb1 {[%emt 0:22:22]} Bb7 {[%emt 0:06:35]} 14. Kh1 {[%emt 0:00:44]} Nf8 {[%emt 0:02:07]} 15. Qd3 {[%emt 0:17:25]} Ng6 {[%emt 0:11:06]} 16. Bf2 {[%emt 0:00:47]} Rc8 {[%emt 0:16:08]} 17. Qd2 {[%emt 0:07:11]} Bd6 {[%emt 0:00:56]} 18. Bf5 {[%emt 0:05:23]} Ra8 {[%emt 0:04:57]} 19. Nb5 {[%emt 0:02:28]} a6 {[%emt 0:02:33]} 20. Nxd6 {[%emt 0:00:11]} Qxd6 {[%emt 0:00:02]} 21. dxc5 {[%emt 0:09:10]} bxc5 {[%emt 0:00:11]} 22. Rfd1 {[%emt 0:05:12]} Rad8 {[%emt 0:00:45]} 23. b3 {[%emt 0:00:46]} Ne5 {[%emt 0:04:28]} 24. Qa5 {[%emt 0:01:38]} g6 {[%emt 0:03:18]} 25. Bb1 {[%emt 0:00:55]} d4 {[%emt 0:01:20]} 26. e4 {[%emt 0:02:17]} Ned7 {[%emt 0:02:05]} 27. b4 {[%emt 0:00:40]} cxb4 {[%emt 0:02:19]} 28. Rxd4 {[%emt 0:00:37]} Qb6 {[%emt 0:02:02]} 29. Qxb6 {[%emt 0:00:34]} 1-0

[Event "11th LCC FIDE Open 2019"]
[Site "London"]
[Date "2019.12.01"]
[Round "4.32"]
[White "Ifalore, Michael"]
[Black "Stoyanov, Viktor"]
[Result "0-1"]
[ECO "B52"]
[WhiteElo "1989"]
[BlackElo "2272"]
[Annotator "ChessBase"]
[PlyCount "94"]
[EventDate "2019.11.29"]
[EventType "swiss"]
[EventCountry "ENG"]
[SourceTitle "playchess.com"]
[Source "ChessBase"]
[SourceQuality "1"]
[TimeControl "40/5400+30:1800+30"]

1. e4 {[%emt 0:06:02]} c5 {[%emt 0:02:35]} 2. Nf3 {[%emt 0:00:05]} d6 {[%emt 0:00:07]} 3. Bb5+ {[%emt 0:00:02]} Bd7 {[%emt 0:03:03]} 4. Bxd7+ {[%emt 0:00:04]} Qxd7 {[%emt 0:00:11]} 5. c4 {[%emt 0:00:03]} Nc6 {[%emt 0:01:29]} 6. Nc3 {[%emt 0:00:13]} Nf6 {[%emt 0:00:10]} 7. d4 {[%emt 0:01:09]} cxd4 {[%emt 0:00:09]} 8. Nxd4 {[%emt 0:00:04]} e6 {[%emt 0:00:15]} 9. O-O {[%emt 0:00:27]} Be7 {[%emt 0:00:13]} 10. Be3 {[%emt 0:02:19]} O-O {[%emt 0:01:50]} 11. f3 {[%emt 0:01:36]} Rfd8 {[%emt 0:03:46]} 12. Qe2 {[%emt 0:10:45]} Rac8 {[%emt 0:04:50]} 13. Rac1 {[%emt 0:02:25]} b6 {[%emt 0:08:53]} 14. Rfd1 {[%emt 0:01:09]} Qb7 {[%emt 0:00:56]} 15. b3 {[%emt 0:02:18]} Ne5 {[%emt 0:11:37]} 16. Kh1 {[%emt 0:05:04]} Ng6 {[%emt 0:05:51]} 17. Bf2 {[%emt 0:19:55]} h5 {[%emt 0:08:45]} 18. Qe3 {[%emt 0:02:27]} h4 {[%emt 0:02:50]} 19. f4 {[%emt 0:06:26]} Ng4 {[%emt 0:11:26]} 20. Qf3 {[%emt 0:00:07]} Nxf2+ {[%emt 0:00:19]} 21. Qxf2 {[%emt 0:00:03]} Nf8 {[%emt 0:00:48]} 22. f5 {[%emt 0:01:35]} Bf6 {[%emt 0:04:04]} 23. Rc2 {[%emt 0:07:19]} h3 {[%emt 0:04:58]} 24. Rcd2 {[%emt 0:01:21]} a6 {[%emt 0:01:56]} 25. Qg3 {[%emt 0:03:31]} hxg2+ {[%emt 0:01:06]} 26. Rxg2 {[%emt 0:00:03]} Be5 {[%emt 0:00:20]} 27. Qg4 {[%emt 0:00:21]} Qe7 {[%emt 0:00:33]} 28. Nce2 {[%emt 0:01:12]} Bf6 {[%emt 0:13:06]} 29. Nf4 {[%emt 0:01:02]} Bxd4 {[%emt 0:04:00]} 30. Rxd4 {[%emt 0:00:25]} Qf6 {[%emt 0:01:19]} 31. Rd3 {[%emt 0:00:26]} exf5 {[%emt 0:00:29]} 32. exf5 {[%emt 0:00:10]} Re8 {[%emt 0:00:15]} 33. h3 {[%emt 0:01:53]} Re1+ {[%emt 0:00:58]} 34. Kh2 {[%emt 0:00:03]} Qa1 {[%emt 0:00:31]} 35. Rf3 {[%emt 0:07:06]} Rce8 {[%emt 0:00:44]} 36. Nh5 {[%emt 0:00:50]} Rh1+ {[%emt 0:00:56]} 37. Kg3 {[%emt 0:00:01]} Qe1+ {[%emt 0:00:42]} 38. Rff2 {[%emt 0:00:05]} Re3+ {[%emt 0:01:05]} 39. Kh4 {[%emt 0:00:04]} Rexh3+ {[%emt 0:00:38]} 40. Qxh3 {[%emt 0:00:05]} Qe4+ {[%emt 0:00:18]} 41. Rg4 {[%emt 0:30:50]} Rxh3+ {[%emt 0:30:14]} 42. Kxh3 {[%emt 0:00:04]} Qh1+ {[%emt 0:00:16]} 43. Rh2 {[%emt 0:00:09]} Qf3+ {[%emt 0:00:54]} 44. Kh4 {[%emt 0:00:53]} Qxf5 {[%emt 0:00:00]} 45. Rxg7+ {[%emt 0:00:00]} Kh8 {[%emt 0:00:00]} 46. Rg5 {[%emt 0:00:00]} Ng6+ {[%emt 0:00:00]} 47. Rxg6 {[%emt 0:00:00]} fxg6 {[%emt 0:00:00]} 0-1

[Event "11th LCC FIDE Open 2019"]
[Site "London"]
[Date "2019.12.01"]
[Round "4.33"]
[White "McClement, Andrew"]
[Black "Penna, Tommaso"]
[Result "1-0"]
[ECO "B56"]
[WhiteElo "2226"]
[BlackElo "2007"]
[Annotator "ChessBase"]
[PlyCount "69"]
[EventDate "2019.11.29"]
[EventType "swiss"]
[EventCountry "ENG"]
[SourceTitle "playchess.com"]
[Source "ChessBase"]
[SourceQuality "1"]
[TimeControl "40/5400+30:1800+30"]

1. Nf3 {[%emt 0:00:00]} c5 {[%emt 0:00:00]} 2. e4 {[%emt 0:00:00]} Nc6 {[%emt 0:00:00]} 3. d4 {[%emt 0:00:00]} cxd4 {[%emt 0:00:00]} 4. Nxd4 {[%emt 0:00:00]} Nf6 {[%emt 0:00:00]} 5. Nc3 {[%emt 0:00:00]} d6 {[%emt 0:00:00]} 6. Be3 {[%emt 0:05:38]} e5 {[%emt 0:00:17]} 7. Nb3 {[%emt 0:00:21]} Be7 {[%emt 0:00:04]} 8. f3 {[%emt 0:00:10]} O-O {[%emt 0:00:06]} 9. Qd2 {[%emt 0:00:23]} a5 {[%emt 0:00:09]} 10. Bb5 {[%emt 0:01:11]} Na7 {[%emt 0:00:11]} 11. Bd3 {[%emt 0:00:34]} Be6 {[%emt 0:00:06]} 12. O-O-O {[%emt 0:09:05]} Qb8 {[%emt 0:16:32]} 13. Kb1 {[%emt 0:05:42]} Nc6 {[%emt 0:11:07]} 14. a4 {[%emt 0:03:51]} Nb4 {[%emt 0:05:39]} 15. g4 {[%emt 0:11:12]} d5 {[%emt 0:14:18]} 16. g5 {[%emt 0:01:28]} d4 {[%emt 0:01:33]} 17. gxf6 {[%emt 0:00:12]} Bxf6 {[%emt 0:02:12]} 18. Rhg1 {[%emt 0:19:47]} dxc3 {[%emt 0:13:36]} 19. Qxc3 {[%emt 0:11:20]} Rc8 {[%emt 0:01:12]} 20. Qd2 {[%emt 0:00:18]} b5 {[%emt 0:08:42]} 21. axb5 {[%emt 0:05:03]} Nxd3 {[%emt 0:01:57]} 22. Qxd3 {[%emt 0:00:33]} Bc4 {[%emt 0:00:36]} 23. Qd6 {[%emt 0:00:35]} Rd8 {[%emt 0:05:23]} 24. Qxb8 {[%emt 0:02:36]} Rdxb8 {[%emt 0:00:00]} 25. b6 {[%emt 0:01:35]} Bd8 {[%emt 0:02:40]} 26. Rd6 {[%emt 0:01:03]} a4 {[%emt 0:04:15]} 27. Nd2 {[%emt 0:01:20]} Bb5 {[%emt 0:01:23]} 28. c4 {[%emt 0:01:17]} Be7 {[%emt 0:01:10]} 29. Rd5 {[%emt 0:00:28]} Bc6 {[%emt 0:01:00]} 30. Rxe5 {[%emt 0:00:53]} Bf6 {[%emt 0:01:47]} 31. Rf5 {[%emt 0:00:36]} Kf8 {[%emt 0:01:38]} 32. Ka2 {[%emt 0:03:03]} Bd7 {[%emt 0:00:40]} 33. Rxf6 {[%emt 0:01:11]} gxf6 {[%emt 0:00:10]} 34. Bc5+ {[%emt 0:00:05]} Ke8 {[%emt 0:00:41]} 35. Rg8# {[%emt 0:16:00]} 1-0

[Event "11th LCC FIDE Open 2019"]
[Site "London"]
[Date "2019.12.01"]
[Round "4.34"]
[White "Nilssen, Ellen Fredericia"]
[Black "Akots, Gabor"]
[Result "1/2-1/2"]
[ECO "E91"]
[WhiteElo "2004"]
[BlackElo "2221"]
[Annotator "ChessBase"]
[PlyCount "79"]
[EventDate "2019.11.29"]
[EventType "swiss"]
[EventCountry "ENG"]
[SourceTitle "playchess.com"]
[Source "ChessBase"]
[SourceQuality "1"]
[TimeControl "40/5400+30:1800+30"]

1. d4 {[%emt 0:00:00]} Nf6 {[%emt 0:00:00]} 2. c4 {[%emt 0:00:00]} g6 {[%emt 0:00:00]} 3. Nc3 {[%emt 0:00:00]} Bg7 {[%emt 0:00:00]} 4. e4 {[%emt 0:00:11]} d6 {[%emt 0:00:02]} 5. Be2 {[%emt 0:00:07]} O-O {[%emt 0:00:15]} 6. Bg5 {[%emt 0:00:05]} c6 {[%emt 0:03:13]} 7. Qd2 {[%emt 0:00:33]} a6 {[%emt 0:01:41]} 8. Nf3 {[%emt 0:03:15]} b5 {[%emt 0:00:22]} 9. a3 {[%emt 0:01:37]} bxc4 {[%emt 0:01:26]} 10. Bxc4 {[%emt 0:01:22]} d5 {[%emt 0:01:38]} 11. exd5 {[%emt 0:17:03]} cxd5 {[%emt 0:00:27]} 12. Ba2 {[%emt 0:06:58]} Be6 {[%emt 0:05:33]} 13. O-O {[%emt 0:04:12]} Nbd7 {[%emt 0:00:28]} 14. Bh6 {[%emt 0:01:51]} Nb6 {[%emt 0:05:46]} 15. Bxg7 {[%emt 0:01:59]} Kxg7 {[%emt 0:00:07]} 16. Ne5 {[%emt 0:01:36]} Qd6 {[%emt 0:09:43]} 17. Rac1 {[%emt 0:06:13]} Nc4 {[%emt 0:07:35]} 18. Qe2 {[%emt 0:11:11]} Qb6 {[%emt 0:29:40]} 19. Bxc4 {[%emt 0:03:35]} dxc4 {[%emt 0:00:06]} 20. d5 {[%emt 0:00:08]} Nxd5 {[%emt 0:16:54]} 21. Nxd5 {[%emt 0:02:27]} Bxd5 {[%emt 0:00:06]} 22. Nd7 {[%emt 0:00:19]} Qb7 {[%emt 0:00:16]} 23. Nxf8 {[%emt 0:00:42]} Kxf8 {[%emt 0:01:16]} 24. f3 {[%emt 0:04:31]} Rb8 {[%emt 0:00:46]} 25. Rfd1 {[%emt 0:03:46]} e6 {[%emt 0:01:18]} 26. Rd2 {[%emt 0:00:25]} f6 {[%emt 0:00:06]} 27. Rc3 {[%emt 0:03:16]} Qb6+ {[%emt 0:01:21]} 28. Qe3 {[%emt 0:03:19]} Qxe3+ {[%emt 0:00:06]} 29. Rxe3 {[%emt 0:00:09]} Kf7 {[%emt 0:00:09]} 30. Kf2 {[%emt 0:08:46]} Rb5 {[%emt 0:00:10]} 31. f4 {[%emt 0:04:50]} h5 {[%emt 0:04:43]} 32. g3 {[%emt 0:01:47]} Rb8 {[%emt 0:06:24]} 33. h3 {[%emt 0:00:33]} h4 {[%emt 0:01:47]} 34. gxh4 {[%emt 0:01:09]} Rh8 {[%emt 0:00:05]} 35. Kg3 {[%emt 0:00:06]} Rh5 {[%emt 0:00:11]} 36. Rc3 {[%emt 0:03:46]} Ke7 {[%emt 0:00:06]} 37. Rc1 {[%emt 0:01:37]} a5 {[%emt 0:00:14]} 38. a4 {[%emt 0:02:48]} Rh8 {[%emt 0:00:37]} 39. Rc3 {[%emt 0:00:23]} f5 {[%emt 0:03:43]} 40. Rc1 {[%emt 0:01:18]} 1/2-1/2

[Event "11th LCC FIDE Open 2019"]
[Site "London"]
[Date "2019.12.01"]
[Round "4.35"]
[White "Manfay, Mate"]
[Black "Chapman, Matt"]
[Result "1/2-1/2"]
[ECO "A11"]
[WhiteElo "2197"]
[BlackElo "1937"]
[Annotator "ChessBase"]
[PlyCount "87"]
[EventDate "2019.11.29"]
[EventType "swiss"]
[EventCountry "ENG"]
[SourceTitle "playchess.com"]
[Source "ChessBase"]
[SourceQuality "1"]
[TimeControl "40/5400+30:1800+30"]

1. c4 {[%emt 0:12:04]} c6 {[%emt 0:01:13]} 2. Nf3 {[%emt 0:00:05]} d5 {[%emt 0:00:00]} 3. g3 {[%emt 0:00:03]} Nf6 {[%emt 0:00:00]} 4. Bg2 {[%emt 0:00:03]} Bf5 {[%emt 0:00:25]} 5. Qb3 {[%emt 0:00:03]} Qb6 {[%emt 0:01:34]} 6. d3 {[%emt 0:00:07]} e6 {[%emt 0:01:38]} 7. Be3 {[%emt 0:04:39]} Qxb3 {[%emt 0:04:05]} 8. axb3 {[%emt 0:00:04]} a6 {[%emt 0:00:12]} 9. Nh4 {[%emt 0:00:34]} Bg6 {[%emt 0:01:40]} 10. h3 {[%emt 0:01:32]} Nbd7 {[%emt 0:01:11]} 11. Nxg6 {[%emt 0:02:22]} hxg6 {[%emt 0:00:06]} 12. d4 {[%emt 0:00:50]} b5 {[%emt 0:05:10]} 13. cxb5 {[%emt 0:09:07]} cxb5 {[%emt 0:00:08]} 14. Nc3 {[%emt 0:00:09]} Bb4 {[%emt 0:00:51]} 15. O-O {[%emt 0:00:07]} O-O {[%emt 0:00:43]} 16. Rfc1 {[%emt 0:09:12]} Rfc8 {[%emt 0:06:01]} 17. Kh2 {[%emt 0:04:08]} Ne8 {[%emt 0:06:07]} 18. Bf4 {[%emt 0:02:30]} Ndf6 {[%emt 0:18:50]} 19. Na2 {[%emt 0:11:33]} Bf8 {[%emt 0:06:33]} 20. Bd2 {[%emt 0:02:02]} Nd6 {[%emt 0:02:57]} 21. Ba5 {[%emt 0:10:06]} Nde4 {[%emt 0:06:36]} 22. Be1 {[%emt 0:06:36]} Be7 {[%emt 0:02:22]} 23. f3 {[%emt 0:07:42]} Nd6 {[%emt 0:00:43]} 24. g4 {[%emt 0:00:22]} a5 {[%emt 0:09:54]} 25. Rxc8+ {[%emt 0:04:35]} Rxc8 {[%emt 0:09:31]} 26. Rc1 {[%emt 0:00:05]} Rxc1 {[%emt 0:00:29]} 27. Nxc1 {[%emt 0:00:03]} a4 {[%emt 0:00:52]} 28. bxa4 {[%emt 0:03:21]} bxa4 {[%emt 0:00:13]} 29. Bb4 {[%emt 0:00:25]} Kf8 {[%emt 0:00:51]} 30. b3 {[%emt 0:01:16]} axb3 {[%emt 0:00:17]} 31. Nxb3 {[%emt 0:00:06]} Nc4 {[%emt 0:00:20]} 32. Bxe7+ {[%emt 0:01:23]} Kxe7 {[%emt 0:00:05]} 33. Kg1 {[%emt 0:00:39]} Ne3 {[%emt 0:01:14]} 34. Kf2 {[%emt 0:00:06]} Nxg2 {[%emt 0:00:06]} 35. Kxg2 {[%emt 0:00:05]} g5 {[%emt 0:00:32]} 36. Nc5 {[%emt 0:00:33]} Nh7 {[%emt 0:03:43]} 37. Nd3 {[%emt 0:00:59]} Nf8 {[%emt 0:01:08]} 38. e3 {[%emt 0:00:43]} f6 {[%emt 0:04:46]} 39. Kg3 {[%emt 0:00:43]} Ng6 {[%emt 0:00:26]} 40. f4 {[%emt 0:03:01]} Kd6 {[%emt 0:02:22]} 41. fxg5 {[%emt 0:32:55]} fxg5 {[%emt 0:30:07]} 42. Ne1 {[%emt 0:02:14]} Nh4 {[%emt 0:00:00]} 43. Nd3 {[%emt 0:00:00]} Ng6 {[%emt 0:00:00]} 44. Ne1 {[%emt 0:00:00]} 1/2-1/2

[Event "11th LCC FIDE Open 2019"]
[Site "London"]
[Date "2019.12.01"]
[Round "4.39"]
[White "Lohia, Sohum"]
[Black "Osborne, Marcus E"]
[Result "0-1"]
[ECO "B52"]
[WhiteElo "1889"]
[BlackElo "2166"]
[Annotator "ChessBase"]
[PlyCount "62"]
[EventDate "2019.11.29"]
[EventType "swiss"]
[EventCountry "ENG"]
[SourceTitle "playchess.com"]
[Source "ChessBase"]
[SourceQuality "1"]
[TimeControl "40/5400+30:1800+30"]

1. e4 {[%emt 0:00:00]} c5 {[%emt 0:00:00]} 2. Nf3 {[%emt 0:00:04]} d6 {[%emt 0:00:00]} 3. Bb5+ {[%emt 0:00:08]} Bd7 {[%emt 0:00:00]} 4. Bxd7+ {[%emt 0:00:08]} Nxd7 {[%emt 0:00:00]} 5. O-O {[%emt 0:00:12]} Ngf6 {[%emt 0:00:00]} 6. Qe2 {[%emt 0:00:26]} e6 {[%emt 0:00:03]} 7. b3 {[%emt 0:00:18]} Be7 {[%emt 0:00:10]} 8. Bb2 {[%emt 0:00:13]} O-O {[%emt 0:00:19]} 9. c4 {[%emt 0:01:22]} Re8 {[%emt 0:05:16]} 10. d4 {[%emt 0:00:47]} d5 {[%emt 0:00:59]} 11. cxd5 {[%emt 0:05:16]} exd5 {[%emt 0:00:08]} 12. e5 {[%emt 0:00:49]} Ne4 {[%emt 0:00:25]} 13. Nbd2 {[%emt 0:00:52]} Nxd2 {[%emt 0:01:26]} 14. Qxd2 {[%emt 0:00:16]} Rc8 {[%emt 0:08:36]} 15. Rac1 {[%emt 0:03:49]} Qb6 {[%emt 0:15:39]} 16. Rfd1 {[%emt 0:12:43]} Qa6 {[%emt 0:03:36]} 17. Bc3 {[%emt 0:14:17]} b5 {[%emt 0:18:43]} 18. dxc5 {[%emt 0:14:12]} Nxc5 {[%emt 0:00:42]} 19. Bb4 {[%emt 0:15:23]} Ne4 {[%emt 0:17:57]} 20. Qxd5 {[%emt 0:01:13]} Nxf2 {[%emt 0:00:56]} 21. Kxf2 {[%emt 0:01:14]} Bxb4 {[%emt 0:09:05]} 22. Kg1 {[%emt 0:02:35]} Rxc1 {[%emt 0:01:06]} 23. Rxc1 {[%emt 0:00:19]} Qh6 {[%emt 0:01:30]} 24. Rf1 {[%emt 0:03:58]} Qb6+ {[%emt 0:02:11]} 25. Nd4 {[%emt 0:06:00]} Rd8 {[%emt 0:03:58]} 26. Qxf7+ {[%emt 0:00:42]} Kh8 {[%emt 0:00:04]} 27. Rf4 {[%emt 0:04:29]} h6 {[%emt 0:01:29]} 28. Rg4 {[%emt 0:01:24]} g5 {[%emt 0:02:36]} 29. Qe6 {[%emt 0:08:38]} Rxd4 {[%emt 0:02:54]} 30. Qxb6 {[%emt 0:00:43]} axb6 {[%emt 0:00:03]} 31. Rg3 {[%emt 0:02:03]} Rd1+ {[%emt 0:00:03]} 0-1

[Event "11th LCC FIDE Open 2019"]
[Site "London"]
[Date "2019.12.01"]
[Round "4.40"]
[White "Pasztor, Balazs"]
[Black "Jukes, Sam"]
[Result "1-0"]
[ECO "C55"]
[WhiteElo "2166"]
[BlackElo "1899"]
[Annotator "NA"]
[PlyCount "35"]
[EventDate "2019.11.29"]
[EventType "swiss"]
[EventCountry "ENG"]
[SourceTitle "playchess.com"]
[Source "ChessBase"]
[SourceQuality "1"]
[TimeControl "40/5400+30:1800+30"]

1. e4 {[%emt 0:00:00]} e5 {[%emt 0:00:00]} 2. Nf3 {[%emt 0:00:15]} Nc6 {[%emt 0:00:00]} 3. Bc4 {[%emt 0:00:08]} Nf6 {[%emt 0:00:00]} 4. d3 {[%emt 0:00:37]} h6 {[%emt 0:00:24]} 5. O-O {[%emt 0:00:38]} d6 {[%emt 0:00:28]} 6. c3 {[%emt 0:00:46]} g5 {[%emt 0:00:31]} 7. Bb3 {[%emt 0:01:24]} g4 {[%emt 0:00:43]} 8. Ne1 {[%emt 0:02:38]} Be7 {[%emt 0:04:24]} 9. f4 {[%emt 0:04:36]} g3 {[%emt 0:07:03]} 10. h3 {[%emt 0:05:44]} h5 {[%emt 0:08:09]} 11. Nf3 {[%emt 0:05:25]} Be6 {[%emt 0:14:03]} 12. Ng5 {[%emt 0:06:27]} d5 {[%emt 0:07:23]} 13. f5 {[%emt 0:07:06]} Bc8 {[%emt 0:04:05]} 14. exd5 {[%emt 0:07:46]} Nxd5 {[%emt 0:01:15]} 15. Nxf7 {[%emt 0:09:55]} Kxf7 {[%emt 0:01:43]} 16. Qf3 {[%emt 0:01:05]} Bc5+ {[%emt 0:01:28]} 17. d4 {[%emt 0:04:13]} exd4 {[%emt 0:00:57]} 18. Bxd5+ {[%emt 0:01:40] Bf8} 1-0